fUST/lending_fUST_20241206
["ID","MTS","AMOUNT","RATE_DAILY","PERIOD"]
[344452935,1733487040544,-500.0,0.00030136,7]
[344452936,1733487040554,-500.0,0.00030136,7]
[344452937,1733487040563,-500.0,0.00030136,7]
[344452938,1733487040572,-204.35621861,0.00030136,7]
[344452939,1733487040582,-500.0,0.00030136,7]
[344452940,1733487040591,-501.5490734,0.00030136,7]
[344452941,1733487040601,-500.0,0.00030136,7]
[344452942,1733487040610,-165.71826401,0.00030136,7]
[344452943,1733487040619,-500.0,0.00030136,7]
[344452944,1733487040628,-500.0,0.00030136,7]
[344452945,1733487040637,-500.0,0.00030136,7]
[344452946,1733487040646,-500.0,0.00030136,7]
[344452947,1733487040655,-508.93948303,0.00030136,7]
[344452948,1733487040664,-500.0,0.00030136,7]
[344452949,1733487040673,-500.0,0.00030136,7]
[344452950,1733487040682,-500.0,0.00030136,7]
[344452951,1733487040691,-500.0,0.00030136,7]
[344452952,1733487040700,-500.0,0.00030136,7]
[344452953,1733487040709,-500.0,0.00030136,7]
[344452954,1733487040719,-500.0,0.00030136,7]
[344452955,1733487040728,-215.99074586,0.00030136,7]
[344452956,1733487040737,-627.23,0.00030136,7]
[344452957,1733487040746,-420.0,0.00030236,2]
[344452958,1733487040755,-500.0,0.00030289,5]
[344452959,1733487040763,-500.0,0.0003029,5]
[344452960,1733487040773,-1145.83,0.00030298,7]
[344452961,1733487040782,-500.0,0.00030298,7]
[344452962,1733487040791,-500.0,0.00030298,7]
[344452963,1733487040800,-500.0,0.00030298,7]
[344452964,1733487040809,-500.0,0.00030298,7]
[344452965,1733487040818,-500.0,0.00030298,7]
[344452966,1733487040827,-500.0,0.00030298,7]
[344452967,1733487040836,-500.0,0.00030309,5]
[344452968,1733487040845,-500.0,0.00030317,5]
[344452969,1733487040855,-500.0,0.00030398,7]
[344452970,1733487040864,-500.0,0.00030398,7]
[344452971,1733487040873,-505.14,0.00030398,7]
[344452972,1733487040882,-1145.83,0.00030399,7]
[344452973,1733487040892,-1145.83,0.00030399,7]
[344452974,1733487040901,-1145.83,0.00030399,7]
[344452975,1733487040909,-1145.83,0.00030399,7]
[344452976,1733487040918,-500.0,0.00030399,7]
[344452977,1733487040927,-500.0,0.00030399,7]
[344452978,1733487040936,-500.0,0.00030399,7]
[344452979,1733487040945,-500.0,0.00030399,7]
[344452980,1733487040954,-500.0,0.00030399,7]
[344452981,1733487040963,-500.0,0.00030399,7]
[344452982,1733487040972,-500.0,0.00030399,7]
[344452983,1733487040981,-500.0,0.00030399,7]
[344452984,1733487040990,-469.41,0.00030399,7]
[344452985,1733487040999,-517.24,0.00030399,7]
[344452986,1733487041008,-517.24,0.00030399,7]
[344452987,1733487041017,-517.24,0.00030399,7]
[344452988,1733487041026,-500.0,0.00030399,7]
[344452989,1733487041036,-500.0,0.00030399,7]
[344452990,1733487041045,-500.0,0.00030399,7]
[344452991,1733487041054,-500.0,0.00030399,7]
[344452992,1733487041063,-500.0,0.00030399,7]
[344452993,1733487041072,-500.0,0.00030399,7]
[344452994,1733487041082,-627.23,0.00030399,7]
[344452995,1733487041091,-627.23,0.00030399,7]
[344452996,1733487041102,-627.23,0.00030399,7]
[344452997,1733487041111,-500.0,0.00030497,7]
[344452998,1733487041120,-517.24,0.00030497,7]
[344452999,1733487041130,-505.14,0.00030497,7]
[344453000,1733487041139,-500.0,0.00030497,7]
[344453001,1733487041148,-627.23,0.00030497,7]
[344453002,1733487041157,-1145.83,0.00030498,7]
[344453003,1733487041167,-1145.83,0.00030498,7]
[344453004,1733487041177,-1145.83,0.00030498,7]
[344453005,1733487041186,-306.07406193,0.00030498,7]
[344453006,1733487041195,-505.72641249,0.00030498,7]
[344453007,1733487041204,-500.0,0.00030498,7]
[344453008,1733487041214,-500.0,0.00030498,7]
[344453009,1733487041225,-509.66346961,0.00030498,7]
[344453010,1733487041237,-517.24,0.00030498,7]
[344453011,1733487041246,-517.24,0.00030498,7]
[344453012,1733487041255,-500.0,0.00030498,7]
[344453013,1733487041264,-505.313058,0.00030498,7]
[344453014,1733487041274,-627.23,0.00030498,7]
[344453015,1733487041283,-627.23,0.00030498,7]
[344453016,1733487041292,-396.53,0.000305,2]
[344453017,1733487041302,-1145.83,0.00030692,7]
[344453018,1733487041311,-2000.0,0.000307,4]
[344453019,1733487041322,-832.88822213,0.00030807,2]
[344453020,1733487041331,-517.24,0.00030808,7]
[344453021,1733487041340,-505.14,0.00030808,7]
[344453022,1733487041351,-627.23,0.00030808,7]
[344453023,1733487041359,-832.88822213,0.00030809,2]
[344453024,1733487041369,-500.0,0.00030837,5]
[344453025,1733487041377,-1000.0,0.00030838,5]
[344453026,1733487041386,-609.48747025,0.00030857,5]
[344453027,1733487041396,-1000.0,0.00030865,5]
[344453028,1733487041405,-1145.83,0.00030899,7]
[344453029,1733487041415,-319.59563683,0.000309,2]
[344453030,1733487041424,-158.36,0.000309,31]
[344453031,1733487041434,-150.15,0.00030901,10]
[344453032,1733487041443,-150.15,0.00030901,10]
[344453033,1733487041452,-1145.83,0.00030903,7]
[344453034,1733487041461,-517.24,0.00030906,7]
[344453035,1733487041470,-517.24,0.00030906,7]
[344453036,1733487041480,-517.24,0.00030906,7]
[344453037,1733487041489,-517.24,0.00030906,7]
[344453038,1733487041498,-505.14,0.00030906,7]
[344453039,1733487041507,-627.23,0.00030906,7]
[344453040,1733487041517,-627.23,0.00030906,7]
[344453041,1733487041527,-627.23,0.00030906,7]
[344453042,1733487041536,-627.23,0.00030906,7]
[344453043,1733487041546,-1145.83,0.00030907,7]
[344453044,1733487041555,-1145.83,0.00030907,7]
[344453045,1733487041564,-1145.83,0.00030907,7]
[344453046,1733487041573,-1145.83,0.00030907,7]
[344453047,1733487041583,-1145.83,0.00030907,7]
[344453048,1733487041592,-1145.83,0.00030907,7]
[344453049,1733487041604,-1145.83,0.00030907,7]
[344453050,1733487041615,-1145.91,0.00030907,7]
[344453051,1733487041624,-517.24,0.00030907,7]
[344453052,1733487041634,-517.24,0.00030907,7]
[344453053,1733487041643,-505.14,0.00030907,7]
[344453054,1733487041652,-505.14,0.00030907,7]
[344453055,1733487041662,-505.14,0.00030907,7]
[344453056,1733487041671,-505.14,0.00030907,7]
[344453057,1733487041680,-505.14,0.00030907,7]
[344453058,1733487041690,-627.23,0.00030907,7]
[344453059,1733487041700,-627.23,0.00030907,7]
[344453060,1733487041709,-151.0,0.00030908,7]
[344453061,1733487041718,-151.0,0.00030908,7]
[344453062,1733487041727,-151.747542,0.00030908,7]
[344453063,1733487041736,-517.24,0.00030908,7]
[344453064,1733487041746,-517.24,0.00030908,7]
[344453065,1733487041756,-517.24,0.00030908,7]
[344453066,1733487041765,-517.24,0.00030908,7]
[344453067,1733487041775,-517.24,0.00030908,7]
[344453068,1733487041784,-517.24,0.00030908,7]
[344453069,1733487041794,-517.24,0.00030908,7]
[344453070,1733487041803,-517.24,0.00030908,7]
[344453071,1733487041813,-517.24,0.00030908,7]
[344453072,1733487041823,-517.4320853,0.00030908,7]
[344453073,1733487041832,-505.14,0.00030908,7]
[344453074,1733487041842,-505.14,0.00030908,7]
[344453075,1733487041854,-505.14,0.00030908,7]
[344453076,1733487041863,-505.14,0.00030908,7]
[344453077,1733487041873,-505.14,0.00030908,7]
[344453078,1733487041882,-505.14,0.00030908,7]
[344453079,1733487041892,-505.14,0.00030908,7]
[344453080,1733487041901,-505.14,0.00030908,7]
[344453081,1733487041910,-505.14,0.00030908,7]
[344453082,1733487041919,-505.14,0.00030908,7]
[344453083,1733487041928,-505.1937,0.00030908,7]
[344453084,1733487041937,-627.23,0.00030908,7]
[344453085,1733487041947,-627.23,0.00030908,7]
[344453086,1733487041956,-627.23,0.00030908,7]
[344453087,1733487041964,-627.23,0.00030908,7]
[344453088,1733487041974,-627.23,0.00030908,7]
[344453089,1733487041983,-627.23,0.00030908,7]
[344453090,1733487041992,-627.23,0.00030908,7]
[344453091,1733487042002,-627.23,0.00030908,7]
[344453092,1733487042011,-627.23,0.00030908,7]
[344453093,1733487042020,-627.41404261,0.00030908,7]
[344453094,1733487042029,-342.82207153,0.00030908,2]
[344453095,1733487042038,-184.2794372,0.00030908,2]
[344453096,1733487042048,-500.0,0.00030908,2]
[344453097,1733487042057,-500.0,0.00030908,2]
[344453098,1733487042067,-500.0,0.00030908,2]
[344453099,1733487042077,-500.0,0.00030908,2]
[344453100,1733487042086,-177.23803884,0.00030908,2]
[344453101,1733487042095,-500.0,0.00030908,2]
[344453102,1733487042109,-500.0,0.00030908,2]
[344453103,1733487042118,-500.0,0.00030908,2]
[344453104,1733487042127,-500.0,0.00030908,2]
[344453105,1733487042137,-500.0,0.00030908,2]
[344453106,1733487042146,-19737.80794801,0.00030909,2]
[344453143,1733487042844,-1493.97340384,0.00030909,2]
[344453150,1733487042909,-9121.41365823,0.00030909,2]
[344453184,1733487218674,166.362142,0.00013973,2]
[344453198,1733488100446,396.16554743,0.000125,2]
[344453199,1733488147129,-202.0,0.00022,2]
[344453200,1733488147150,-198.68936004,0.00024082,2]
[344453249,1733488231960,-301.31063996,0.00024082,2]
[344453251,1733488231970,-45.00186004,0.00025349,2]
[344453254,1733488231988,-454.99813996,0.00025349,2]
[344453256,1733488231997,-300.0,0.00025999,2]
[344453258,1733488232007,-300.0,0.00025999,2]
[344453260,1733488232016,-1811.659924,0.00026,30]
[344453262,1733488232025,-2271.82463226,0.00026,3]
[344453264,1733488232034,-3638.57572835,0.00026,2]
[344453266,1733488232042,-2167.42147627,0.00026,7]
[344453269,1733488232051,-169.71121,0.00026289,2]
[344453272,1733488232060,-423.25095408,0.00026616,2]
[344453275,1733488232069,-181.771903,0.00027155,2]
[344453278,1733488232078,-1116.7128552,0.00027165,2]
[344453281,1733488232088,-397.0,0.00028137,2]
[344453284,1733488232097,-773.1158396,0.00028383,2]
[344453286,1733488232107,-250.0,0.00028909,2]
[344453289,1733488232116,-395.507,0.0002936,2]
[344453291,1733488232126,-9594.15144027,0.0003,3]
[344453293,1733488232135,-500.0,0.00030136,7]
[344453295,1733488232144,-500.0,0.00030136,7]
[344453296,1733488232153,-500.0,0.00030136,7]
[344453297,1733488232163,-308.61743693,0.00030136,7]
[344453298,1733488232172,-182.3428125,0.00030185,2]
[344453299,1733488232181,-500.0,0.00030399,3]
[344453301,1733488232192,-356.88,0.000304,2]
[344453302,1733488232200,-967.01630524,0.0003069,2]
[344453303,1733488232210,-2000.0,0.000307,4]
[344453304,1733488232220,-2091.11382306,0.00030712,2]
[344453306,1733488232230,-2091.11382304,0.00030726,2]
[344453307,1733488232239,-2091.11382304,0.00030741,2]
[344453308,1733488232248,-2091.11382304,0.00030755,2]
[344453309,1733488232258,-2091.11382304,0.00030769,2]
[344453310,1733488232267,-2091.11382304,0.00030783,2]
[344453311,1733488232276,-2091.11382304,0.00030798,2]
[344453312,1733488232286,-500.0,0.00030811,7]
[344453313,1733488232295,-3703.84376279,0.00030812,2]
[344453314,1733488232304,-2091.11382304,0.00030812,2]
[344453315,1733488232315,-57033.44050728,0.000309,120]
[344453316,1733488232325,-500.0,0.00030908,7]
[344453317,1733488232334,-365.10392313,0.00030908,7]
[344453318,1733488232343,-151.0,0.00030909,7]
[344453319,1733488232352,-151.0,0.00030909,7]
[344453320,1733488232362,-174.336407,0.00030909,7]
[344453321,1733488232372,-180.525188,0.00030909,7]
[344453322,1733488232381,-180.525188,0.00030909,7]
[344453323,1733488232391,-180.525188,0.00030909,7]
[344453324,1733488232401,-180.525188,0.00030909,7]
[344453325,1733488232410,-180.525188,0.00030909,7]
[344453326,1733488232420,-180.525188,0.00030909,7]
[344453327,1733488232429,-180.525188,0.00030909,7]
[344453328,1733488232553,-180.525188,0.00030909,7]
[344453329,1733488232564,-180.525188,0.00030909,7]
[344453330,1733488232574,-180.525188,0.00030909,7]
[344453331,1733488232583,-180.525188,0.00030909,7]
[344453332,1733488232593,-180.525188,0.00030909,7]
[344453333,1733488232603,-180.525188,0.00030909,7]
[344453334,1733488232613,-180.525188,0.00030909,7]
[344453335,1733488232622,-180.525188,0.00030909,7]
[344453336,1733488232636,-180.525188,0.00030909,7]
[344453337,1733488232646,-180.525188,0.00030909,7]
[344453338,1733488232655,-180.525188,0.00030909,7]
[344453339,1733488232664,-180.525188,0.00030909,7]
[344453340,1733488232674,-180.525178,0.00030909,7]
[344453341,1733488232686,-214.92140745,0.00030909,7]
[344453342,1733488232696,-249.37,0.00030909,7]
[344453343,1733488232707,-500.0,0.00030911,7]
[344453344,1733488232717,-500.0,0.00030911,7]
[344453345,1733488232727,-216.16609102,0.00030911,2]
[344453346,1733488232736,-238.17955977,0.00030911,2]
[344453347,1733488232745,-500.0,0.00030911,2]
[344453348,1733488232755,-370.05438667,0.00030911,2]
[344453349,1733488232765,-213.21832692,0.00030911,2]
[344453350,1733488232775,-519.69311543,0.00030911,2]
[344453351,1733488232792,-237.30146919,0.00030912,7]
[344453352,1733488232809,-243.76261981,0.00030912,7]
[344453353,1733488232820,-481.064089,0.00030912,7]
[344453354,1733488232830,-481.064089,0.00030912,7]
[344453355,1733488232840,-481.064089,0.00030912,7]
[344453356,1733488232850,-481.064089,0.00030912,7]
[344453357,1733488232860,-481.064089,0.00030912,7]
[344453358,1733488232870,-481.064089,0.00030912,7]
[344453359,1733488232879,-481.064089,0.00030912,7]
[344453360,1733488232890,-481.064089,0.00030912,7]
[344453361,1733488232899,-481.064089,0.00030912,7]
[344453362,1733488232909,-110.98759499,0.00030912,7]
[344453370,1733488237863,-370.07649401,0.00030912,7]
[344453371,1733488237875,-481.064089,0.00030912,7]
[344453372,1733488237885,-481.064089,0.00030912,7]
[344453373,1733488237895,-481.064089,0.00030912,7]
[344453374,1733488237904,-481.064089,0.00030912,7]
[344453375,1733488237914,-481.064089,0.00030912,7]
[344453376,1733488237924,-481.064089,0.00030912,7]
[344453377,1733488237934,-481.064089,0.00030912,7]
[344453378,1733488237945,-481.064089,0.00030912,7]
[344453379,1733488237955,-481.064097,0.00030912,7]
[344453380,1733488237964,-180.49108,0.00030912,7]
[344453381,1733488237974,-180.49108,0.00030912,7]
[344453382,1733488237983,-180.49108,0.00030912,7]
[344453383,1733488237992,-180.49108,0.00030912,7]
[344453384,1733488238002,-180.49108,0.00030912,7]
[344453385,1733488238011,-180.49108,0.00030912,7]
[344453386,1733488238021,-180.49108,0.00030912,7]
[344453387,1733488238030,-180.49108,0.00030912,7]
[344453388,1733488238040,-180.49108,0.00030912,7]
[344453389,1733488238049,-180.49108,0.00030912,7]
[344453390,1733488238060,-180.49108,0.00030912,7]
[344453391,1733488238070,-180.49108,0.00030912,7]
[344453392,1733488238079,-180.49108,0.00030912,7]
[344453393,1733488238089,-180.49108,0.00030912,7]
[344453394,1733488238099,-180.49108,0.00030912,7]
[344453395,1733488238108,-180.49108,0.00030912,7]
[344453396,1733488238118,-180.49108,0.00030912,7]
[344453397,1733488238127,-180.49108,0.00030912,7]
[344453398,1733488238137,-180.49108,0.00030912,7]
[344453399,1733488238146,-180.491085,0.00030912,7]
[344453400,1733488238156,-151.0,0.00030912,7]
[344453401,1733488238164,-409.421835,0.00030912,7]
[344453402,1733488238174,-409.421835,0.00030912,7]
[344453403,1733488238184,-409.421835,0.00030912,7]
[344453404,1733488238195,-409.421835,0.00030912,7]
[344453405,1733488238204,-409.421835,0.00030912,7]
[344453406,1733488238213,-409.421835,0.00030912,7]
[344453407,1733488238223,-409.421835,0.00030912,7]
[344453408,1733488238232,-409.421835,0.00030912,7]
[344453409,1733488238242,-409.421835,0.00030912,7]
[344453410,1733488238251,-409.421835,0.00030912,7]
[344453411,1733488238261,-409.421835,0.00030912,7]
[344453412,1733488238271,-409.421835,0.00030912,7]
[344453413,1733488238280,-409.421835,0.00030912,7]
[344453414,1733488238290,-409.421835,0.00030912,7]
[344453415,1733488238299,-409.421835,0.00030912,7]
[344453416,1733488238309,-409.421835,0.00030912,7]
[344453417,1733488238318,-191.86556175,0.00030912,7]
[344453418,1733488238330,-217.55627325,0.00030912,7]
[344453419,1733488238340,-409.421835,0.00030912,7]
[344453420,1733488238350,-409.421835,0.00030912,7]
[344453421,1733488238359,-409.421829,0.00030912,7]
[344453422,1733488238369,-574.234406,0.00030912,7]
[344453423,1733488238378,-574.234406,0.00030912,7]
[344453424,1733488238387,-574.234406,0.00030912,7]
[344453425,1733488238396,-574.234406,0.00030912,7]
[344453426,1733488238406,-574.234406,0.00030912,7]
[344453427,1733488238415,-574.234406,0.00030912,7]
[344453428,1733488238425,-574.234406,0.00030912,7]
[344453429,1733488238435,-574.234406,0.00030912,7]
[344453430,1733488238446,-574.234406,0.00030912,7]
[344453431,1733488238455,-574.234406,0.00030912,7]
[344453432,1733488238465,-574.234406,0.00030912,7]
[344453433,1733488238474,-574.234406,0.00030912,7]
[344453434,1733488238484,-574.234406,0.00030912,7]
[344453435,1733488238493,-574.234406,0.00030912,7]
[344453436,1733488238503,-574.234406,0.00030912,7]
[344453437,1733488238511,-574.234406,0.00030912,7]
[344453438,1733488238520,-574.234406,0.00030912,7]
[344453439,1733488238530,-574.234406,0.00030912,7]
[344453440,1733488238539,-574.234406,0.00030912,7]
[344453441,1733488238550,-574.234396,0.00030912,7]
[344453442,1733488238559,-56243.61922098,0.00030912,2]
[344453443,1733488238569,-14853.58571134,0.00030912,10]
[344453453,1733488240046,-45770.64156214,0.00030089,2]
[344453454,1733488240055,-3320.19436686,0.00030912,10]
[344453754,1733488502593,166.242105,0.00013973,2]
[344453763,1733489152021,166.242105,0.00013973,2]
[344453764,1733489229157,-169.71121,0.0002554,2]
[344453765,1733489229178,-736.5264,0.00025915,2]
[344453766,1733489229199,-1326.936362,0.00026015,2]
[344453767,1733489229221,-181.771903,0.00026301,2]
[344453768,1733489229242,-300.0,0.00026599,2]
[344453769,1733489229269,-300.0,0.00026599,2]
[344453770,1733489229391,-500.0,0.000266,2]
[344453771,1733489229413,-587.47741933,0.000266,2]
[344453772,1733489229434,-500.22346353,0.000266,2]
[344453773,1733489229459,-158.27979009,0.000266,2]
[344453774,1733489229481,-500.0,0.000268,2]
[344453775,1733489229503,-500.0,0.000268,2]
[344453776,1733489229524,-10504.23885175,0.00026896,2]
[344453813,1733489432303,-6492.43747805,0.00026896,2]
[344453815,1733489432313,-5480.2106287,0.00027022,2]
[344453817,1733489432322,-501.72234512,0.00027348,2]
[344453819,1733489432332,-378.936,0.0002936,2]
[344453821,1733489432342,-29146.78337913,0.000295,2]
[344453824,1733489432354,-976.5548815,0.000295,2]
[344453826,1733489432365,-10937.19836283,0.000295,2]
[344453909,1733489438163,-3807.53554002,0.000295,2]
[344453910,1733489438175,-1379.9999995,0.000295,2]
[344453911,1733489438187,-1379.40402007,0.000295,2]
[344453932,1733489440241,-10558.43224323,0.000295,2]
[344453933,1733489440253,-14051.45083346,0.000295,2]
[344453934,1733489440267,-185.56814075,0.0003,2]
[344453935,1733489440276,-150.95947324,0.0003,2]
[344453936,1733489440284,-71.66964324,0.000301,14]
[344453937,1733489440295,-369.33035676,0.000301,14]
[344453938,1733489440304,-500.0,0.00030136,7]
[344453939,1733489440314,-500.0,0.00030136,7]
[344453940,1733489440323,-500.0,0.00030136,7]
[344453941,1733489440332,-150.95947319,0.00030136,2]
[344453942,1733489440341,-309.5775789,0.000302,5]
[344453943,1733489440350,-185.56814075,0.00030408,2]
[344453944,1733489440359,-321.19,0.000305,2]
[344453945,1733489440369,-500.0,0.00030699,7]
[344453946,1733489440378,-500.0,0.00030699,7]
[344453947,1733489440387,-500.0,0.00030699,7]
[344453948,1733489440396,-500.0,0.00030699,7]
[344453949,1733489440405,-2000.0,0.000307,4]
[344453950,1733489440414,-169.64346761,0.00030816,2]
[344453951,1733489440423,-185.56814075,0.00030816,2]
[344453952,1733489440432,-500.0,0.00030899,3]
[344453953,1733489440441,-500.0,0.00030908,7]
[344453954,1733489440450,-500.0,0.00030908,7]
[344453955,1733489440460,-263.97681268,0.00030908,7]
[344453956,1733489440469,-500.0,0.00030908,7]
[344453957,1733489440478,-149.87412192,0.00030908,7]
[344453979,1733489443200,-150.95947319,0.00030272,2]
[344453981,1733489443209,-350.12587808,0.00030908,7]
[344453983,1733489443219,-500.0,0.00030908,7]
[344453985,1733489443228,-504.57652854,0.00030908,7]
[344453987,1733489443237,-500.0,0.00030911,7]
[344453989,1733489443246,-500.0,0.00030911,7]
[344453991,1733489443260,-501.69552979,0.00030911,7]
[344453993,1733489443269,-500.0,0.00030911,7]
[344453994,1733489443278,-411.59446324,0.00030911,7]
[344453996,1733489443287,-500.0,0.00030911,7]
[344453998,1733489443296,-500.0,0.00030911,7]
[344453999,1733489443305,-500.0,0.00030911,7]
[344454000,1733489443314,-500.0,0.00030911,7]
[344454001,1733489443323,-500.0,0.00030911,7]
[344454002,1733489443332,-500.0,0.00030911,7]
[344454004,1733489443341,-500.0,0.00030911,7]
[344454006,1733489443351,-500.0,0.00030911,7]
[344454007,1733489443359,-58.15076085,0.00030912,7]
[344454008,1733489443371,-441.84923915,0.00030912,7]
[344454009,1733489443380,-500.0,0.00030912,7]
[344454010,1733489443389,-500.0,0.00030912,7]
[344454011,1733489443398,-500.0,0.00030912,7]
[344454012,1733489443407,-469.55504625,0.00030912,7]
[344454013,1733489443423,-500.0,0.000302,5]
[344454014,1733489443432,-30.44495375,0.00030912,7]
[344454015,1733489443441,-500.0,0.00030912,7]
[344454016,1733489443450,-500.0,0.00030912,7]
[344454017,1733489443459,-500.0,0.00030912,7]
[344454018,1733489443469,-500.0,0.00030912,7]
[344454019,1733489443478,-500.0,0.00030912,7]
[344454020,1733489443487,-500.0,0.00030912,7]
[344454021,1733489443497,-500.0,0.00030912,7]
[344454022,1733489443510,-500.0,0.00030912,7]
[344454023,1733489443519,-500.0,0.00030912,7]
[344454024,1733489443527,-500.0,0.00030912,7]
[344454025,1733489443536,-500.0,0.00030912,7]
[344454026,1733489443545,-500.0,0.00030912,7]
[344454027,1733489443554,-500.0,0.00030912,7]
[344454029,1733489443564,-500.0,0.00030912,7]
[344454031,1733489443573,-500.0,0.00030912,7]
[344454033,1733489443582,-500.0,0.00030912,7]
[344454035,1733489443591,-500.0,0.00030912,7]
[344454036,1733489443601,-500.0,0.00030912,7]
[344454037,1733489443610,-507.51256307,0.00030912,7]
[344454039,1733489443619,-166.72569184,0.00030915,2]
[344454040,1733489443627,-609.03807067,0.00030915,2]
[344454041,1733489443637,-8801.93860904,0.00030916,2]
[344454074,1733489788062,166.242105,0.00013973,2]
[344454133,1733490435111,-500.0,0.00025205,2]
[344454134,1733490435133,-500.0,0.00025205,2]
[344454135,1733490435169,-240.32467856,0.00025205,2]
[344454136,1733490435190,-363.149,0.0002937,2]
[344454137,1733490435211,-500.0,0.00029499,3]
[344454138,1733490435232,-419.0,0.000301,14]
[344454139,1733490435254,-500.0,0.00030136,7]
[344454140,1733490435275,-289.07,0.000305,2]
[344454141,1733490435297,-500.0,0.00030699,7]
[344454142,1733490435319,-1604.0,0.000307,4]
[344454143,1733490435339,-500.0,0.00030768,7]
[344454144,1733490435363,-603.83789276,0.00030816,2]
[344454145,1733490435383,-6588.39267793,0.00030816,2]
[344454146,1733490435406,-500.0,0.00030869,5]
[344454147,1733490435428,-500.0,0.00030899,7]
[344454148,1733490435451,-500.0,0.00030899,7]
[344454149,1733490435473,-500.0,0.00030899,7]
[344454150,1733490435494,-500.0,0.0003091,7]
[344454151,1733490435516,-500.0,0.00030911,7]
[344454152,1733490435537,-500.0,0.00030911,7]
[344454153,1733490435558,-500.0,0.00030911,7]
[344454154,1733490435579,-500.0,0.00030911,7]
[344454155,1733490435600,-500.0,0.00030911,7]
[344454156,1733490435621,-253.96139626,0.00030911,7]
[344454157,1733490435642,-91.17168088,0.00030912,7]
[344454158,1733490472057,166.839019,0.00013973,2]
[344454180,1733490634837,-292.8,0.000299,2]
[344454210,1733490638206,-3063.08,0.000299,2]
[344454213,1733490638233,-1020.01073743,0.000299,2]
[344454221,1733490638294,-4284.67987989,0.000299,2]
[344454267,1733490640170,-944.39389295,0.000299,2]
[344454268,1733490640229,-24473.24965001,0.000299,2]
[344454269,1733490640241,-4905.89648094,0.000299,2]
[344454270,1733490640254,-31057.58566998,0.000299,2]
[344454271,1733490640264,-260.17,0.000305,2]
[344454272,1733490640274,-408.82831912,0.00030912,7]
[344454273,1733490640283,-500.0,0.00030912,7]
[344454274,1733490640293,-500.0,0.00030912,7]
[344454275,1733490640302,-500.0,0.00030912,7]
[344454276,1733490640313,-500.0,0.00030912,7]
[344454278,1733490640322,-365.53856708,0.00030912,7]
[344454280,1733490640548,-134.46143292,0.00030912,7]
[344454282,1733490640557,-500.0,0.00030912,7]
[344454284,1733490640567,-500.0,0.00030912,7]
[344454286,1733490640576,-500.0,0.00030912,7]
[344454288,1733490640585,-174.11719157,0.00030915,2]
[344454290,1733490640596,-198.6139852,0.00030915,2]
[344454292,1733490640608,-43.13042657,0.00030915,2]
[344454329,1733490643371,-456.86957343,0.00030915,2]
[344454330,1733490643381,-171.85748144,0.00030915,2]
[344454331,1733490643390,-456.55105294,0.00030915,2]
[344454332,1733490643399,-4469.17189219,0.00030916,2]
[344454333,1733490643410,-4778.4,0.00030916,2]
[344454334,1733490643449,-5979.19316185,0.00030916,2]
[344454425,1733490646317,-1854.563,0.00030916,2]
[344454427,1733490646329,-17726.28032919,0.00030916,2]
[344454428,1733490646339,-12451.53396035,0.00030916,10]
[344454431,1733491163273,158.199496,0.00013973,2]
[344454432,1733491211134,4863.01,0.0002,2]
[344454434,1733491598132,-201.5906806,0.0002831,2]
[344454435,1733491598152,-231.898439,0.00028686,2]
[344454436,1733491598173,-200.0,0.00028745,15]